Cogmind - Beta 13 @@@ ROGUE MODE // 2024.04.01 @ 21:08:10 Player: MrDirtyHerb Result: Destroyed self with Mini Grenade Launcher Performance ------------- Evolutions (1) 500 Regions Visited (4) 800 Robots Destroyed (53) 265 Value Destroyed (1474) 1474 Prototype IDs (1) 20 Alien Tech Used (0) 0 Bonus (36) 36 TOTAL SCORE: 3095 Bonus ------- Follower Combat Kills 64 Friendly Fire -28 Cogmind --------- Core Integrity 0/400 Matter 196/300 Energy 265/265 System Corruption 4% Temperature Hot (247) Movement Core (250) Ox4 Location -9/Storage Parts ------- > --- POWER (2) -------- Reinforced Ion Engine > --- PROPULSION (2) --- (None) > --- UTILITY (2) ------ Cooling System Utility Shielding > --- WEAPON (3) ------- Mini Grenade Launcher > --- INVENTORY (5) ---- Light Armor Plating Peak State ------------ > --- POWER ------------ Light Angular Momentum Engine > --- PROPULSION ------- Aluminum Leg Carbon-fiber Leg > --- UTILITY ---------- Improved Heat Sink Hacking Suite > --- WEAPON ----------- Medium Laser Beamcaster > --- INVENTORY -------- Utility Shielding Grenade Launcher Datajack [Rating: 21] Favorites ----------- Power Light Nuclear Core Engine Improved Ion Engine Power Core Light Nuclear Core Propulsion Light Treads Treads Light Treads Leg Aluminum Leg Wheel Wheel Utility Utility Shielding Device Improved Heat Sink Hackware Hacking Suite Protection Utility Shielding Weapon Beam Rifle Energy Gun Beam Rifle Energy Cannon Particle Cannon Launcher Grenade Launcher Special Weapon Mining Laser Special Melee Weapon Datajack Build | -11 -10 -10 -9 -9 ------- Run | Yrd Mat Min Mat Sto Slots Evolved 2 | . . . 2 . Power 1 | . . . 1 . Propulsion . | . . . . . Utility . | . . . . . Weapon 1 | . . . 1 . Parts Attached 48 | 6 7 7 18 10 Power 12 | 3 2 1 3 3 Engine 10 | 3 2 1 1 3 Core 2 | . . . 2 . Reactor . | . . . . . Propulsion 9 | 2 2 2 2 1 Treads 3 | . . . 2 1 Leg 4 | . 2 2 . . Wheel 2 | 2 . . . . Hover . | . . . . . Flight . | . . . . . Utility 8 | . 2 1 4 1 Device 3 | . . 1 1 1 Storage . | . . . . . Processor . | . . . . . Hackware 1 | . . . 1 . Protection 4 | . 2 . 2 . Artifact . | . . . . . Weapon 19 | 1 1 3 9 5 Energy Gun 11 | 1 . 2 5 3 Energy Cannon 1 | . . . . 1 Ballistic Gun . | . . . . . Ballistic Cannon . | . . . . . Launcher 5 | . 1 . 3 1 Special Weapon 1 | . . 1 . . Impact Weapon . | . . . . . Slashing Weapon . | . . . . . Piercing Weapon . | . . . . . Special Melee Weapon 1 | . . . 1 . Unidentified Prototypes . | . . . . . Parts Lost 15 | . . 1 8 6 Power 4 | . . 1 2 1 Propulsion 4 | . . . 2 2 Utility . | . . . . . Weapon 7 | . . . 4 3 Highest Loss Streak 5 | . . 1 3 5 To Critical Strikes . | . . . . . Average Slot Usage (%) 83 | . 97 92 68 90 Engine 8 | . 14 6 3 11 Core 3 | . . . 2 9 Treads 7 | . . . 9 14 Leg 10 | . 26 28 5 . Device 8 | . . 4 11 11 Protection 15 | . 26 24 10 11 Energy Gun 21 | . 14 17 24 25 Energy Cannon 1 | . . . . 7 Launcher 3 | . 13 6 1 . Naked Turns . | . . . . . Heaviest Build 33 | 7 12 18 23 33 Greatest Support 40 | 20 20 25 40 40 Greatest Overweight (x) 8 | . . . 4 8 Average Overweight (x) . | . . . . . Largest Inventory Capacity 5 | 5 5 5 5 5 Average Capacity 5 | 5 5 5 5 5 Most Carried 5 | 5 5 5 5 5 Average Carried 2 | 3 1 2 3 1 Final Capacity 5 | 5 5 5 5 5 Final Carried 5 | 5 2 2 2 1 Class Distribution -------------------- 42% | Scavenger-Tank 39% | Mutant 11% | Scavenger-Mutant 3% | Gunner Dominant Class ---------------- Mutant | -10/Materials Mutant | -10/Mines Scavenger-Tank | -9/Materials Scavenger-Tank | -9/Storage Resources | -11 -10 -10 -9 -9 ----------- Run | Yrd Mat Min Mat Sto Matter Collected 731 | 260 100 171 180 20 Remotely . | . . . . . Salvage Created 1668 | 40 111 125 1025 367 Parts 119 | 1 18 10 71 19 Haulers Intercepted . | . . . . . Recyclers Shooed 1 | . . . 1 . Parts Field Recycled . | . . . . . Retrieved Matter . | . . . . . Parts Self-Destructed . | . . . . . Prevented . | . . . . . Kills | -11 -10 -10 -9 -9 ------- Run | Yrd Mat Min Mat Sto Combat Hostiles Destroyed 43 | 1 8 6 20 8 Guns 31 | 1 2 5 18 5 Cannons 2 | . . . . 2 AOE 10 | . 6 1 2 1 Classes Destroyed 9 | 1 4 . 2 2 Worker 3 | . 1 . 2 . Mechanic 1 | . 1 . . . Operator 2 | . . . 2 . Watcher 4 | . 1 . 3 . Swarmer 12 | . 8 4 . . Grunt 19 | 1 . 2 12 4 Brawler 2 | . . . . 2 Duelist 1 | . . . . 1 Sentry 9 | . . . 8 1 Best Kill Streak 3 | 1 3 3 3 3 Combat Bots Only 3 | 1 3 3 3 3 Max Kills in Single Turn 3 | 1 3 1 2 1 Gunslinging 1 | . . . 1 . Exploded 2 | . 2 1 1 1 Melee . | . . . . . Uniques/NPCs Destroyed . | . . . . . Combat | -11 -10 -10 -9 -9 -------- Run | Yrd Mat Min Mat Sto Hostile Shots Fired 218 | 9 10 22 117 60 Missed 72 | 3 3 7 44 15 Damage Taken 2134 | 71 106 183 940 834 Core 479 | 24 18 36 245 156 Absorbed by Shields . | . . . . . Redirected to Shielding 10 | . . . 10 . Core Remaining (%) 79 | 90 . 68 . . Volleys Fired 118 | 8 10 22 56 22 Largest 3 | 1 2 2 3 3 Hottest 180 | 50 80 150 168 180 Shots Fired 226 | 8 17 33 121 47 Gun 191 | 8 10 26 115 32 Cannon 13 | . . . . 13 Launcher 17 | . 7 2 6 2 Special 5 | . . 5 . . Kinetic . | . . . . . Thermal 199 | 8 10 31 105 45 Explosive 17 | . 7 2 6 2 Electromagnetic 10 | . . . 10 . Robot Hit Streak 12 | 5 3 4 12 10 Robot Miss Streak 4 | 1 4 2 4 3 Penetration Max . | . . . . . Secondary Targets 4 | . . 1 3 . Max Gunslinging Chain 2 | . . 1 2 . Shots Hit Robots 127 | 6 6 15 72 28 Core Hits 87 | 2 13 8 49 15 Critical Kills . | . . . . . Critical Parts Destroyed . | . . . . . Critical Strikes 13 | 1 1 1 7 3 Burn 13 | 1 1 1 7 3 Melee Attacks . | . . . . . Impact . | . . . . . Slashing . | . . . . . Piercing . | . . . . . Sneak Attacks . | . . . . . Combat Hostiles . | . . . . . Follow-up Attacks . | . . . . . Damage Inflicted 3018 | 74 413 387 1489 655 Guns 1693 | 74 49 207 1012 351 Cannons 165 | . . . . 165 Explosions 1137 | . 360 180 458 139 Melee . | . . . . . Ramming 23 | . 4 . 19 . Kinetic . | . . . . . Thermal 1892 | 74 49 276 977 516 Explosive 1024 | . 360 111 414 139 Electromagnetic 79 | . . . 79 . Impact . | . . . . . Slashing . | . . . . . Piercing . | . . . . . Highest Corruption 4 | . . . . 4 Average Corruption 4 | . . . . 4 Corruption Purged . | . . . . . Corruption Blocked . | . . . . . Effects 2 | . . . . 2 Matter Fused 1 | . . . . 1 Energy Discharges 1 | . . . . 1 Overload Shots . | . . . . . Overflow Damage 62 | . 18 36 8 . Projectiles . | . . . . . Explosions 62 | . 18 36 8 . Melee . | . . . . . Knockbacks . | . . . . . Impact . | . . . . . Kinetic . | . . . . . Secondary . | . . . . . Self-Inflicted Damage 230 | . 57 40 36 97 Shots 7 | . 3 1 1 2 Rammed 5 | . . . 5 . Targets Rammed 9 | . 1 . 8 . Kicked 4 | . 1 . 3 . Crushed . | . . . . . Highest Temperature 523 | 68 64 81 282 523 Average Temperature 78 | 32 21 22 71 181 Received Heat Transfer 732 | 36 . 54 450 192 Effects 9 | . . . 2 7 Shutdowns 2 | . . . . 2 Interference 5 | . . . 2 3 Matter Decay 1 | . . . . 1 Short Circuit 1 | . . . . 1 Siege Activations . | . . . . . Robots Corrupted . | . . . . . Combat Hostiles . | . . . . . Parts Fried . | . . . . . Impact Corruptions . | . . . . . Robots Melted . | . . . . . Combat Hostiles . | . . . . . Parts Melted 10 | 1 . 2 4 3 Heat Transferred 5273 | 296 222 729 2825 1201 Parts Sabotaged . | . . . . . Parts Stolen . | . . . . . Parts Stripped . | . . . . . Power Chain Reactions 1 | . . . 1 . Alert | -11 -10 -10 -9 -9 ------- Run | Yrd Mat Min Mat Sto Peak Influence 336 | 20 336 291 264 221 Initial 111 | . 13 58 35 111 Average 144 | 3 217 166 146 107 Maximum Alert Level 1 | . 1 1 1 1 Low Security (%) 75 | 100 39 70 86 81 Level 1 24 | . 60 29 13 18 Level 2 . | . . . . . Level 3 . | . . . . . Level 4 . | . . . . . Level 5 . | . . . . . High Security . | . . . . . Max Security . | . . . . . Squads Dispatched 5 | . 1 . 1 3 Investigation . | . . . . . Extermination . | . . . . . Reinforcement 3 | . 1 . 1 1 Assault 2 | . . . . 2 Garrison . | . . . . . Intercept . | . . . . . Searches Triggered . | . . . . . Construction Impeded . | . . . . . Haulers Reinforced . | . . . . . Active Scanning Responses . | . . . . . Cargo Convoy Interrupts . | . . . . . Stealth | -11 -10 -10 -9 -9 --------- Run | Yrd Mat Min Mat Sto Distress Signals 10 | . 1 . 6 3 Communications Jammed . | . . . . . Distress Signals . | . . . . . Times Spotted 79 | 1 13 10 33 22 Peak Tracking Total 9 | 1 4 3 5 9 Tactical Retreats 5 | . 2 . . 3 Traps | -11 -10 -10 -9 -9 ------- Run | Yrd Mat Min Mat Sto Traps Triggered 1 | . . . . 1 Indirectly . | . . . . . Trap Hack Attempts . | . . . . . Triggered . | . . . . . Disarmed . | . . . . . Reprogrammed . | . . . . . Reused . | . . . . . Traps Extracted . | . . . . . Installed . | . . . . . Triggered . | . . . . . Machines | -11 -10 -10 -9 -9 ---------- Run | Yrd Mat Min Mat Sto Machines Disabled 2 | . 1 1 . . Max in Single Turn 1 | . 1 1 . . Machines Repaired . | . . . . . Machines Dismantled . | . . . . . Machines Sabotaged . | . . . . . Overloaded Fab Kills . | . . . . . Hacking | -11 -10 -10 -9 -9 --------- Run | Yrd Mat Min Mat Sto Machines Accessed 7 | . 3 . 2 2 Terminals 3 | . 1 . 1 1 Fabricators . | . . . . . Repair Stations 1 | . 1 . . . Recycling Units 2 | . 1 . . 1 Scanalyzers 1 | . . . 1 . Garrison Access . | . . . . . Total Hacks 15 | . 6 . 7 2 Successful 9 | . 4 . 3 2 Failed 6 | . 2 . 4 . Catastrophic . | . . . . . Database Lockouts . | . . . . . Manual . | . . . . . Terminals 7 | . 1 . 5 1 Fabricators . | . . . . . Repair Stations 2 | . 2 . . . Recycling Units 4 | . 3 . . 1 Scanalyzers 2 | . . . 2 . Garrison Access . | . . . . . Terminal Hacks 3 | . 1 . 1 1 Open Door 1 | . . . . 1 Alert Level 2 | . 1 . 1 . Fabricator Hacks . | . . . . . Repair Station Hacks . | . . . . . Recycling Unit Hacks 4 | . 3 . . 1 Recycle Component 2 | . 1 . . 1 Process 1 | . 1 . . . Report Inventory 1 | . 1 . . . Scanalyzer 2 | . . . 2 . Insert Component 1 | . . . 1 . Analyze 1 | . . . 1 . Garrison Access Hacks . | . . . . . Unauthorized Hacks . | . . . . . Terminals . | . . . . . Fabricators . | . . . . . Repair Stations . | . . . . . Recycling Units . | . . . . . Scanalyzers . | . . . . . Garrison Access . | . . . . . Data Cores Recovered 1 | . . . 1 . Used . | . . . . . Hacking Detections 5 | . 2 . 2 1 Full Trace Events . | . . . . . Feedback Events . | . . . . . Feedback Blocked . | . . . . . Robot Schematics Acquired . | . . . . . Robots Built . | . . . . . Authchips . | . . . . . Time . | . . . . . Total Robot Build Rating . | . . . . . Part Schematics Acquired . | . . . . . Parts Built . | . . . . . Authchips . | . . . . . Time . | . . . . . Total Part Build Rating . | . . . . . Parts Repaired . | . . . . . Time . | . . . . . Parts Recycled 2 | . 1 . . 1 Recycled Matter 138 | . 138 . . . Retrieved Matter . | . . . . . Retrieved Components . | . . . . . Parts Scanalyzed 1 | . . . 1 . Part Schematics Acquired . | . . . . . Parts Damaged . | . . . . . Bothacking | -11 -10 -10 -9 -9 ------------ Run | Yrd Mat Min Mat Sto Used RIF Installer . | . . . . . Robots Hacked . | . . . . . Non-combat . | . . . . . Combat . | . . . . . Robot Hacks Applied . | . . . . . Relay Couplers Released . | . . . . . Fabnet Peak Effective % . | . . . . . Robots Rewired . | . . . . . Allies Hacked . | . . . . . Hacks Repelled . | . . . . . Allies | -11 -10 -10 -9 -9 -------- Run | Yrd Mat Min Mat Sto Total Allies 4 | . . 2 . 2 Largest Group 2 | . . 2 . 2 Highest-Rated Group 62 | . . 44 . 62 Highest-Rated Ally 31 | . . 31 . 31 Total Orders . | . . . . . Ally Attacks 21 | . . 10 . 11 Total Damage 378 | . . 169 . 209 Kills 4 | . . 4 . . Allies Corrupted . | . . . . . Allies Melted 1 | . . . . 1 Intel | -11 -10 -10 -9 -9 ------- Run | Yrd Mat Min Mat Sto Robot Analysis Total . | . . . . . Derelict Logs Recovered 1 | . . 1 . . Drone Launches . | . . . . . Drone Recoveries . | . . . . . Exploration | -11 -10 -10 -9 -9 ------------- Run | Yrd Mat Min Mat Sto Turns Passed 2925 | 123 474 415 1153 760 Spaces Moved 1672 | 129 356 251 612 324 Core 161 | 50 . . 108 3 Treads 597 | . . . 276 321 Legs 820 | . 341 251 228 . Wheels 94 | 79 15 . . . Hover . | . . . . . Flight . | . . . . . Fastest Speed 50 | 50 80 120 50 160 Average Speed 144 | 68 118 120 151 207 Slowest Speed 450 | 80 120 120 250 450 Overloaded Moves . | . . . . . Propulsion Burnouts . | . . . . . Robots Hopped . | . . . . . Cave-ins Triggered . | . . . . . Exploration Rate (%) 31 | 6 42 35 35 38 Regions Visited 4 Branch Regions 2 Pre-discovered Areas . | . . . . . Known Exits Taken 1 | . . . 1 . Unknown Exits Taken 3 | 1 1 1 . . Scrap Searched . | . . . . . Spaces Dug . | . . . . . Terrain Destroyed 127 | . 44 23 50 10 Melee . | . . . . . Projectile . | . . . . . AOE 127 | . 44 23 50 10 Terrain Rammed . | . . . . . Walls Destroyed . | . . . . . Machines Disabled . | . . . . . Actions | -11 -10 -10 -9 -9 --------- Run | Yrd Mat Min Mat Sto Total 1996 | 155 397 326 739 379 Wait 49 | 3 . 27 15 4 Move 1668 | 128 355 250 611 324 Hop . | . . . . . Pick Up 59 | 9 12 9 18 11 Fast Attach . | . . . . . Attach 40 | 5 6 5 17 7 Detach 13 | 1 1 3 6 2 Swap 8 | 1 1 2 1 3 Drop 32 | . 11 8 7 6 Fire 118 | 8 10 22 56 22 Melee . | . . . . . Ram 5 | . . . 5 . Kick 4 | . 1 . 3 . Crush . | . . . . . Escape Stasis . | . . . . . Rewire . | . . . . . Trap . | . . . . . Miscellaneous . | . . . . . Route ------- -11/Scrapyard -10/Materials (discovered 2 exits: *Mat / [*Min]) -10/Mines -9/Materials (discovered 2 exits: [*Min] / *Sto) -9/Storage History --------- Turn | Location | Event 2 | -11/Scrapyard | Met Revision 17 76 | -11/Scrapyard | Discovered new exit (range 8) 124 | -11/Scrapyard | Entered Materials 247 | -10/Materials | Discovered new exit (range 15) 307 | -10/Materials | Build established: Mutant 555 | -10/Materials | Discovered new exit (range 15) 598 | -10/Materials | Entered Mines 782 | -10/Mines | Excavation squad dispatched 782 | -10/Mines | A large section of the Mines collapsed 981 | -10/Mines | Discovered new exit (range 11) 1013 | -10/Mines | Entered Materials 1013 | -9/Materials | Evolved 2 slots: Power x1, Weapon x1 1014 | -9/Materials | Identified exit to Storage 1190 | -9/Materials | Build established: Scavenger-Mutant 1284 | -9/Materials | Lost 3 parts (1n2w) 1370 | -9/Materials | Discovered new exit (range 16) 1858 | -9/Materials | Core integrity fell below 50% 1957 | -9/Materials | Build established: Scavenger-Tank 2166 | -9/Materials | Entered Storage 2769 | -9/Storage | Met a pair of Derelict thieves 2900 | -9/Storage | Core integrity fell below 20% 2926 | -9/Storage | Destroyed self with Mini Grenade Launcher Last Messages --------------- Lgt. Treads destroyed. Power failure, Rnf. Ion Engine shutdown. Y-45 Defender destroyed. Overheating: Matter decay (-28). K-01 Serf collects debris. Power failure, Rnf. Ion Engine shutdown. Particle Cannon destroyed. Lgt. Treads destroyed. Imp. Medium Laser destroyed. Beam Rifle broken. Overheating: Short circuit. K-01 Serf collects debris. System corrupted: Energy discharge (-167). R-06 Scavenger collects Heat Sink. Broken Beam Rifle destroyed. K-01 Serf collects debris. Rnf. Ion Engine severed. A-02 Transporter sends out distress signal. L-31 Rogue destroyed. [Achievement: First Step to Greatness] Map ----- +----------------------------------------------------+ | ???????????????????#"" """#??????????????????? | | ???????????????????#"T #??????????????????? | | ???????????????????#"" """#??????????????????? | | ???????????????????#"" """#?????##########???? | | ???????????????????### """#?????# T #???? | | ?????????????????????# ####### #???? | | ??????????################/#### # ##??? | | ??????????# ! # % #??? | | ??????????# T + ##??? | | ??????????# % # """ #???? | | ??????????##################### % # """ !#???? | | ??????????????????????????????## ## """ !!#???? | | ?????????????????????########### ## #???? | | ?????????????????????# # ###########???? | | ?????????????????????# # #?????????????? | | ?????????????????????# # #?????????????? | | ?????????????????????# + #?????????????? | | ????????????? ???????# # #?????????????? | | ?????????????= ??????# */ # #?????????????? | | ??????????????? ????# /% %! # #?????????????? | | ????????????#+###+###### u###### #?????????????? | | ????????????# r% ##???# #?????????????? | | ????????????# % % ua #???# #?????????????? | | ?????????? / k%=m ! #???# #?????????????? | | ???????????###+####### %!%*#???# #??######?????? | | ?????????????????????# @ #???# #### !!!#?????? | | ?????????????????????# #???# ##T# !!#?????? | | ?????????????????????# ##???# # #?????? | | ?????????????????????## #????# + !#?????? | | ??????????????????????# #????# # !!#?????? | | ??????????????????????# #????# # # !!#?????? | | ??????????????######??# %#????# #########?????? | | ??????????????#] ] #### ###### #?????????????? | | ??????????????# ]] #T## u^ ^ #?????????????? | | ??????????????# " # ^^ #?????????????? | | ??????????????#[ + """ """ #?????????????? | | ??????????????# [ " # """ """ #?????????????? | | ??????????????#[[ !# # """ """ #?????????????? | | ??????????????######### #?????????????? | | ??????????????????????# #?????????????? | | ?????????????????????## ^ #?????????????? | | ?????????????????????# "" ######+######?? | | ?????????????????????# Y" #?? | | ?????????????????????# % "" #?? | | ?????????????????????# #?? | | ?????????????????????# ^ ^#?? | | ?????????????????????######"Y"##################?? | | ??????????????????????????#"""#??????????????????? | | ??????????????????????????#####??????????????????? | | | +----------------------------------------------------+ Best States ------------- Heat Dissipation 50 Energy Generation 21 Energy Capacity 430 Matter Stores 300 Matter Capacity 300 Sight Range 16 Terrain Scan Density 10 Utility Shielding 33 Evasion (%) 55 Recoil Reduction 2 Item Schematics ----------------- None Robot Schematics ------------------ None Fabricated ------------ Nothing Alien Tech Used ----------------- None Achievements -------------- Crack Shot First Step to Greatness Let's See Who's Tougher Safety First Uninvited Guest Challenges ------------ None Game ------ Seed DeuteriumTerrabombDetector Manual? 0 Play Time 01:38:51 Cumulative 1.6 hours Start 2024.04.01 @ 19:04:19 End 2024.04.01 @ 21:08:10 Sessions 1 Manual Loads 0 Difficulty Rogue Special Mode None Game No. 1 Rogue 1 Adventurer 0 Explorer 0 Win Type - Total 0 Types 0/0/0/0/0/0/0/0/0 Lore% 0 Gallery% 2 Achievement% 1 Wizard Run 0 Options --------- Layout 1 ASCII 0 Keyboard 1 Movement Arrows Keybinds 0 Fullscreen 2 Font 32/SmallcapsGlow Map View 50x35 Zoom Use 0% Tactical HUD 0 Map Filters NONE Filters NONE Steam 1 RUN: 03503a20-85e3-4f39-9154-c15c090e6670